[Event "1000GM Schev-A January 2024"]
[Site "Sunnyvale"]
[Date "2024.01.20"]
[Round "1.1"]
[White "Jasinski, Alexander"]
[Black "Moreno Trujillo, Alejandro"]
[Result "1/2-1/2"]
[ECO "C88"]
[WhiteElo "1951"]
[BlackElo "2485"]
[Annotator "RC"]
[PlyCount "40"]
[EventDate "2024.01.20"]
[EventType "schev"]
[EventCountry "USA"]
[SourceTitle "playchess.com"]
[Source "ChessBase"]
[SourceQuality "1"]
[TimeControl "5400+30"]

1. e4 {[%emt 0:00:03]} e5 {[%emt 0:00:12]} 2. Nf3 {[%emt 0:00:13]} Nc6 {[%emt 0:00:11]} 3. Bb5 {[%emt 0:00:02]} a6 {[%emt 0:00:09]} 4. Ba4 {[%emt 0:00:03]} Nf6 {[%emt 0:00:07]} 5. O-O {[%emt 0:00:05]} b5 {[%emt 0:00:18]} 6. Bb3 {[%emt 0:00:03]} Be7 {[%emt 0:00:05]} 7. Re1 {[%emt 0:00:04]} d6 {[%emt 0:00:56]} 8. a4 {[%emt 0:00:08]} Bb7 {[%emt 0:00:30]} 9. d3 {[%emt 0:00:12]} O-O {[%emt 0:00:28]} 10. Nbd2 {[%emt 0:00:14]} h6 {[%emt 0:00:33]} 11. h3 {[%emt 0:00:06]} Re8 {[%emt 0:00:26]} 12. Nf1 {[%emt 0:00:08]} Bf8 {[%emt 0:00:12]} 13. Ne3 {[%emt 0:00:16]} g6 {[%emt 0:01:37]} 14. Nd5 {[%emt 0:01:23]} Nxd5 {[%emt 1:31:46]} 15. Bxd5 {[%emt 0:00:05]} Bg7 {[%emt 0:00:00]} 16. Be3 {[%emt 0:00:16]} Qd7 {[%emt 0:00:00]} 17. Qd2 {[%emt 0:00:24]} Kh7 {[%emt 0:00:00]} 18. axb5 {[%emt 0:00:37]} axb5 {[%emt 0:00:00]} 19. Rxa8 {[%emt 0:00:03]} Bxa8 {[%emt 0:00:00]} 20. Ra1 {[%emt 0:00:09]} Rh8 {[%emt 0:03:00]} 1/2-1/2

[Event "1000GM Schev-A January 2024"]
[Site "Sunnyvale"]
[Date "2024.01.20"]
[Round "1.2"]
[White "Yao, Hanchi"]
[Black "Perez Avendano, Paul Omar"]
[Result "1/2-1/2"]
[ECO "A59"]
[WhiteElo "1998"]
[BlackElo "2213"]
[Annotator "RC"]
[PlyCount "44"]
[EventDate "2024.01.20"]
[EventType "schev"]
[EventCountry "USA"]
[SourceTitle "playchess.com"]
[Source "ChessBase"]
[SourceQuality "1"]
[TimeControl "5400+30"]

1. d4 {[%emt 0:00:02]} Nf6 {[%emt 0:00:39]} 2. c4 {[%emt 0:00:09]} c5 {[%emt 0:02:18]} 3. d5 {[%emt 0:00:12]} b5 {[%emt 0:00:26]} 4. cxb5 {[%emt 0:00:10]} a6 {[%emt 0:00:07]} 5. bxa6 {[%emt 0:00:03]} Bxa6 {[%emt 0:00:18]} 6. Nc3 {[%emt 0:00:05]} d6 {[%emt 0:00:55]} 7. e4 {[%emt 0:00:13]} Bxf1 {[%emt 0:00:09]} 8. Kxf1 {[%emt 0:00:03]} g6 {[%emt 0:00:52]} 9. g3 {[%emt 0:00:05]} Bg7 {[%emt 0:00:27]} 10. Kg2 {[%emt 0:00:06]} O-O {[%emt 0:01:29]} 11. Nf3 {[%emt 0:00:05]} Nbd7 {[%emt 0:01:35]} 12. Qe2 {[%emt 0:00:11]} Qc7 {[%emt 0:05:38]} 13. a4 {[%emt 0:11:04]} Rfb8 {[%emt 0:02:46]} 14. Nb5 {[%emt 0:05:07]} Qb7 {[%emt 0:03:13]} 15. Bd2 {[%emt 0:05:58]} Nb6 {[%emt 0:18:45]} 16. b3 {[%emt 0:00:36]} Re8 {[%emt 0:18:36]} 17. Bc3 {[%emt 0:01:55]} Nc8 {[%emt 0:01:48]} 18. Qb2 {[%emt 0:05:42]} Ra6 {[%emt 0:04:03]} 19. Rhe1 {[%emt 0:03:17]} Na7 {[%emt 0:01:41]} 20. Na3 {[%emt 0:01:13]} Rb8 {[%emt 0:06:15]} 21. Rab1 {[%emt 0:01:17]} Qa8 {[%emt 0:06:16]} 22. Qe2 {[%emt 0:12:51]} Rab6 {[%emt 0:01:14]} 1/2-1/2

[Event "1000GM Schev-A January 2024"]
[Site "Sunnyvale"]
[Date "2024.01.20"]
[Round "1.4"]
[White "Diaz Cordoba, Fredy"]
[Black "Chinni, Rishabh"]
[Result "0-1"]
[ECO "D05"]
[WhiteElo "2240"]
[BlackElo "1939"]
[Annotator "RC"]
[PlyCount "74"]
[EventDate "2024.01.20"]
[EventType "schev"]
[EventCountry "USA"]
[SourceTitle "playchess.com"]
[Source "ChessBase"]
[SourceQuality "1"]
[TimeControl "5400+30"]

1. d4 {[%emt 0:05:32]} Nf6 {[%emt 0:00:10]} 2. Nf3 {[%emt 0:02:00]} e6 {[%emt 0:00:11]} 3. e3 {[%emt 0:00:12]} d5 {[%emt 0:01:49]} 4. Be2 {[%emt 0:00:12]} c5 {[%emt 0:02:24]} 5. O-O {[%emt 0:00:26]} Be7 {[%emt 0:00:42]} 6. b3 {[%emt 0:02:39]} O-O {[%emt 0:02:33]} 7. Bb2 {[%emt 0:00:12]} Nc6 {[%emt 0:00:42]} 8. Ne5 {[%emt 0:01:16]} Qc7 {[%emt 0:03:14]} 9. Nd2 {[%emt 0:06:52]} b6 {[%emt 0:02:10]} 10. f4 {[%emt 0:00:17]} Bb7 {[%emt 0:03:52]} 11. a3 {[%emt 0:01:19]} Rfd8 {[%emt 0:04:05]} 12. Bd3 {[%emt 0:02:07]} cxd4 {[%emt 0:19:06]} 13. exd4 {[%emt 0:00:14]} Ne4 {[%emt 0:00:44]} 14. Nxf7 {[%emt 0:22:22]} Kxf7 {[%emt 0:13:02]} 15. Nxe4 {[%emt 0:02:04]} dxe4 {[%emt 0:00:54]} 16. Qh5+ {[%emt 0:00:13]} Kg8 {[%emt 0:04:16]} 17. Bxe4 {[%emt 0:02:10]} Bf6 {[%emt 0:03:34]} 18. Qxh7+ {[%emt 0:05:08]} Kf7 {[%emt 0:02:49]} 19. Qh5+ {[%emt 0:16:58]} Ke7 {[%emt 0:06:39]} 20. c3 {[%emt 0:01:02]} Na5 {[%emt 0:12:04]} 21. Bxb7 {[%emt 0:01:23]} Nxb7 {[%emt 0:00:17]} 22. Rae1 {[%emt 0:00:31]} Rh8 {[%emt 0:04:15]} 23. Qe2 {[%emt 0:10:41]} Qd6 {[%emt 0:04:04]} 24. Qe4 {[%emt 0:06:25]} Rab8 {[%emt 0:02:17]} 25. g3 {[%emt 0:00:52]} Kf7 {[%emt 0:00:48]} 26. f5 {[%emt 0:04:45]} exf5 {[%emt 0:01:36]} 27. Qxf5 {[%emt 0:00:24]} Rbd8 {[%emt 0:00:42]} 28. Qf3 {[%emt 0:00:51]} Qd5 29. Re4 {[%emt 0:00:40]} Qh5 {[%emt 0:01:45]} 30. Qf2 {[%emt 0:00:54]} Nd6 {[%emt 0:01:07]} 31. Rf4 {[%emt 0:00:35]} Rhe8 {[%emt 0:02:03]} 32. g4 {[%emt 0:01:55]} Qg6 {[%emt 0:00:40]} 33. Qg2 {[%emt 0:00:45]} Kg8 {[%emt 0:01:04]} 34. c4 {[%emt 0:01:17]} Bg5 {[%emt 0:00:49]} 35. R4f3 {[%emt 0:00:46]} Re4 {[%emt 0:00:23]} 36. Kh1 {[%emt 0:00:47]} Bf6 {[%emt 0:00:25]} 37. Rf4 {[%emt 0:01:26]} Rde8 {[%emt 0:00:25]} 0-1

[Event "1000GM Schev-A January 2024"]
[Site "Sunnyvale"]
[Date "2024.01.20"]
[Round "1.5"]
[White "Stopa, Jacek"]
[Black "Xia, Joshua"]
[Result "1-0"]
[ECO "A29"]
[WhiteElo "2344"]
[BlackElo "1922"]
[Annotator "RC"]
[PlyCount "61"]
[EventDate "2024.01.20"]
[EventType "schev"]
[EventCountry "USA"]
[SourceTitle "playchess.com"]
[Source "ChessBase"]
[SourceQuality "1"]
[TimeControl "5400+30"]

1. c4 {[%emt 0:00:47]} e5 {[%emt 0:02:33]} 2. Nc3 {[%emt 0:00:24]} Nf6 {[%emt 0:00:23]} 3. g3 {[%emt 0:00:15]} d5 {[%emt 0:00:21]} 4. cxd5 {[%emt 0:00:06]} Nxd5 {[%emt 0:00:17]} 5. Bg2 {[%emt 0:00:06]} Nb6 {[%emt 0:01:21]} 6. Nf3 {[%emt 0:00:23]} Nc6 {[%emt 0:00:09]} 7. O-O {[%emt 0:00:18]} Be7 {[%emt 0:02:12]} 8. d3 {[%emt 0:03:33]} O-O {[%emt 0:00:23]} 9. a4 {[%emt 0:01:56]} Be6 {[%emt 0:03:33]} 10. a5 {[%emt 0:03:10]} Nd5 {[%emt 0:03:25]} 11. a6 {[%emt 0:00:42]} b6 {[%emt 0:14:23]} 12. Qa4 {[%emt 0:02:05]} Qd7 {[%emt 0:09:39]} 13. Nxd5 {[%emt 0:04:59]} Bxd5 {[%emt 0:00:50]} 14. Nxe5 {[%emt 0:00:07]} Nxe5 {[%emt 0:01:36]} 15. Qxd7 {[%emt 0:00:08]} Nxd7 {[%emt 0:00:26]} 16. Bxd5 {[%emt 0:00:07]} Rad8 {[%emt 0:00:11]} 17. Bf4 {[%emt 0:02:00]} c5 {[%emt 0:07:19]} 18. Bb7 {[%emt 0:03:35]} Nf6 {[%emt 0:02:51]} 19. Rfc1 {[%emt 0:02:42]} Bd6 {[%emt 0:01:41]} 20. Bd2 {[%emt 0:02:43]} Rfe8 {[%emt 0:00:51]} 21. Bf3 {[%emt 0:01:04]} Be5 {[%emt 0:05:43]} 22. Rab1 {[%emt 0:02:58]} Nd5 {[%emt 0:00:34]} 23. Rc4 {[%emt 0:00:46]} Nc7 {[%emt 0:00:58]} 24. Bb7 {[%emt 0:03:13]} Bd4 {[%emt 0:00:54]} 25. Kf1 {[%emt 0:00:28]} Re7 {[%emt 0:01:23]} 26. b4 {[%emt 0:01:24]} Nb5 {[%emt 0:04:52]} 27. bxc5 {[%emt 0:02:39]} Na3 {[%emt 0:03:32]} 28. Rxd4 {[%emt 0:00:08]} Rxd4 {[%emt 0:01:00]} 29. Rb3 {[%emt 0:00:06]} bxc5 {[%emt 0:01:43]} 30. Rxa3 {[%emt 0:00:57]} Rc7 {[%emt 0:02:11]} 31. Ba5 {[%emt 0:00:27]} 1-0

[Event "1000GM Schev-A January 2024"]
[Site "Sunnyvale"]
[Date "2024.01.21"]
[Round "2.1"]
[White "Perez Avendano, Paul Omar"]
[Black "Jasinski, Alexander"]
[Result "1-0"]
[ECO "B00"]
[WhiteElo "2213"]
[BlackElo "1951"]
[Annotator "RC"]
[PlyCount "99"]
[EventDate "2024.01.20"]
[EventType "schev"]
[EventCountry "USA"]
[SourceTitle "playchess.com"]
[Source "ChessBase"]
[SourceQuality "1"]
[TimeControl "5400+30"]

1. e4 {[%emt 0:02:06]} Nc6 {[%emt 0:00:08]} 2. d4 {[%emt 0:00:18]} d5 {[%emt 0:00:06]} 3. e5 {[%emt 0:01:01]} Bf5 {[%emt 0:00:21]} 4. c3 {[%emt 0:00:46]} e6 {[%emt 0:00:22]} 5. Nf3 {[%emt 0:01:31]} f6 {[%emt 0:03:23]} 6. Bb5 {[%emt 0:00:43]} Nge7 {[%emt 1:29:10]} 7. exf6 {[%emt 0:00:58]} gxf6 {[%emt 0:00:00]} 8. Nh4 {[%emt 0:00:57]} Bg6 9. Nxg6 {[%emt 0:00:22]} hxg6 {[%emt 0:00:00]} 10. Bf4 {[%emt 0:00:30]} Bh6 {[%emt 0:02:00]} 11. Bg3 {[%emt 0:00:36]} a6 {[%emt 0:00:00]} 12. Ba4 {[%emt 0:01:36]} b5 {[%emt 0:00:00]} 13. Bc2 f5 {[%emt 0:00:00]} 14. h3 {[%emt 0:05:48]} f4 {[%emt 0:00:00]} 15. Bh2 e5 {[%emt 0:00:00]} 16. dxe5 {[%emt 0:03:09]} Nxe5 {[%emt 0:00:00]} 17. O-O {[%emt 0:00:45]} O-O {[%emt 0:00:00]} 18. Re1 {[%emt 0:00:53]} Qd6 {[%emt 0:00:00]} 19. Nd2 {[%emt 0:02:36]} N7c6 {[%emt 0:00:00]} 20. Bb3 {[%emt 0:12:38]} Kh7 {[%emt 0:05:00]} 21. Nf3 {[%emt 0:06:17]} Rad8 {[%emt 0:00:00]} 22. Bc2 {[%emt 0:02:07]} Kg8 {[%emt 0:00:00]} 23. Nd4 {[%emt 0:00:30]} Na5 {[%emt 0:00:00]} 24. Bxg6 {[%emt 0:00:30]} Bg7 {[%emt 0:00:00]} 25. Bc2 {[%emt 0:00:30]} Qf6 {[%emt 0:00:00]} 26. Qh5 {[%emt 0:00:30]} Rf7 {[%emt 0:00:00]} 27. Nf5 {[%emt 0:00:30]} Nac4 {[%emt 0:00:00]} 28. Bxf4 {[%emt 0:00:30]} Rdf8 {[%emt 0:00:00]} 29. Rxe5 {[%emt 0:00:30]} Nxe5 {[%emt 0:00:00]} 30. Bxe5 {[%emt 0:00:30]} Qxf5 {[%emt 0:00:00]} 31. Bxf5 {[%emt 0:00:30]} Rxf5 {[%emt 0:00:00]} 32. Qg6 {[%emt 0:00:30]} Rxe5 {[%emt 0:00:00]} 33. Qxa6 {[%emt 0:00:30]} Re2 {[%emt 0:00:00]} 34. Qxb5 {[%emt 0:00:30]} Rfxf2 {[%emt 0:00:00]} 35. Qxd5+ {[%emt 0:20:22]} Kh8 {[%emt 0:00:00]} 36. Rf1 {[%emt 0:01:57]} Rxf1+ {[%emt 0:00:00]} 37. Kxf1 {[%emt 0:00:06]} Rxb2 {[%emt 0:00:00]} 38. a4 {[%emt 0:00:09]} Bxc3 {[%emt 0:00:00]} 39. Qd8+ {[%emt 0:00:39]} Kh7 {[%emt 0:00:00]} 40. Qd3+ {[%emt 0:00:05]} Kg8 {[%emt 0:00:00]} 41. Qxc3 {[%emt 0:00:07]} Rb1+ {[%emt 0:00:00]} 42. Kf2 {[%emt 0:00:07]} Rb8 {[%emt 0:00:00]} 43. Qxc7 {[%emt 0:00:14]} Ra8 {[%emt 0:00:00]} 44. a5 {[%emt 0:00:21]} Rxa5 {[%emt 0:00:00]} 45. Qxa5 {[%emt 0:00:08]} Kh8 {[%emt 0:00:00]} 46. Qc7 {[%emt 0:00:07]} Kg8 {[%emt 0:00:00]} 47. g4 {[%emt 0:00:10]} Kf8 {[%emt 0:00:00]} 48. g5 {[%emt 0:00:08]} Kg8 {[%emt 0:00:00]} 49. g6 {[%emt 0:00:06]} Kf8 {[%emt 0:00:00]} 50. Qf7# {[%emt 0:00:08]} 1-0

[Event "1000GM Schev-A January 2024"]
[Site "Sunnyvale"]
[Date "2024.01.20"]
[Round "2.1"]
[White "Perez Avendano, Paul Omar"]
[Black "Jasinski, Alexander"]
[Result "*"]
[ECO "B00"]
[WhiteElo "2213"]
[BlackElo "1951"]
[Annotator "RC"]
[PlyCount "35"]
[EventDate "2024.01.20"]
[EventType "schev"]
[EventCountry "USA"]
[SourceTitle "playchess.com"]
[Source "ChessBase"]
[SourceQuality "1"]
[TimeControl "5400+30"]

1. e4 {[%emt 0:02:06]} Nc6 {[%emt 0:00:08]} 2. d4 {[%emt 0:00:18]} d5 {[%emt 0:00:06]} 3. e5 {[%emt 0:01:01]} Bf5 {[%emt 0:00:21]} 4. c3 {[%emt 0:00:46]} e6 {[%emt 0:00:22]} 5. Nf3 {[%emt 0:01:31]} f6 {[%emt 0:03:23]} 6. Bb5 {[%emt 0:00:43]} Nge7 {[%emt 1:29:10]} 7. exf6 {[%emt 0:00:58]} gxf6 {[%emt 0:00:00]} 8. Nh4 {[%emt 0:00:57]} Bg6 9. Nxg6 {[%emt 0:00:22]} hxg6 {[%emt 0:00:00]} 10. Bf4 {[%emt 0:00:30]} Bh6 {[%emt 0:02:00]} 11. Bg3 {[%emt 0:00:36]} a6 {[%emt 0:00:00]} 12. Ba4 {[%emt 0:01:36]} b5 {[%emt 0:00:00]} 13. Bc2 f5 {[%emt 0:00:00]} 14. h3 {[%emt 0:05:48]} f4 {[%emt 0:00:00]} 15. Bh2 e5 {[%emt 0:00:00]} 16. dxe5 {[%emt 0:03:09]} Nxe5 {[%emt 0:00:00]} 17. O-O {[%emt 0:00:30]} N5c6 {[%emt 0:00:00]} 18. Re1 {[%emt 0:00:53]} *

[Event "1000GM Schev-A January 2024"]
[Site "Sunnyvale"]
[Date "2024.01.21"]
[Round "2.2"]
[White "Ramirez, Carlos"]
[Black "Yao, Hanchi"]
[Result "1/2-1/2"]
[ECO "E32"]
[WhiteElo "2190"]
[BlackElo "1998"]
[Annotator "RC"]
[PlyCount "110"]
[EventDate "2024.01.20"]
[EventType "schev"]
[EventCountry "USA"]
[SourceTitle "playchess.com"]
[Source "ChessBase"]
[SourceQuality "1"]
[TimeControl "5400+30"]

1. d4 {[%emt 0:12:32]} Nf6 {[%emt 0:00:01]} 2. c4 {[%emt 0:00:08]} e6 {[%emt 0:00:03]} 3. Nc3 {[%emt 0:00:11]} Bb4 {[%emt 0:00:03]} 4. Qc2 {[%emt 0:00:09]} b6 {[%emt 0:00:08]} 5. e4 {[%emt 0:01:09]} Bxc3+ {[%emt 0:03:41]} 6. bxc3 {[%emt 0:01:20]} d6 {[%emt 0:00:04]} 7. Bd3 {[%emt 0:00:13]} Bb7 {[%emt 0:01:54]} 8. Ne2 {[%emt 0:00:34]} e5 {[%emt 0:02:10]} 9. O-O {[%emt 0:00:57]} Nbd7 {[%emt 0:00:26]} 10. f4 {[%emt 0:01:52]} Qe7 {[%emt 0:00:11]} 11. Ng3 {[%emt 0:01:44]} g6 {[%emt 0:02:12]} 12. c5 {[%emt 0:17:33]} exd4 {[%emt 0:05:12]} 13. cxd6 {[%emt 0:06:57]} Qxd6 {[%emt 0:02:21]} 14. e5 {[%emt 0:01:15]} Qc5 {[%emt 0:00:37]} 15. exf6 {[%emt 0:00:23]} dxc3+ {[%emt 0:00:14]} 16. Kh1 {[%emt 0:12:00]} O-O-O {[%emt 0:03:03]} 17. f5 {[%emt 0:03:56]} Nxf6 {[%emt 0:01:57]} 18. Bg5 {[%emt 0:00:41]} Ng4 {[%emt 0:02:03]} 19. Be4 {[%emt 0:01:43]} Rde8 {[%emt 0:03:15]} 20. Rac1 {[%emt 0:09:54]} f6 {[%emt 0:08:24]} 21. h3 {[%emt 0:10:35]} fxg5 {[%emt 0:03:11]} 22. hxg4 {[%emt 0:00:16]} h5 {[%emt 0:00:15]} 23. Bxb7+ {[%emt 0:00:49]} Kxb7 {[%emt 0:00:08]} 24. gxh5 {[%emt 0:00:10]} Re3 {[%emt 0:01:58]} 25. Rf3 {[%emt 0:02:11]} gxf5 {[%emt 0:03:53]} 26. Qf2 {[%emt 0:05:08]} Re5 {[%emt 0:02:57]} 27. Qxc5 {[%emt 0:01:48]} Rxc5 {[%emt 0:00:03]} 28. Rxf5 {[%emt 0:00:24]} Rxh5+ {[%emt 0:00:43]} 29. Kg1 {[%emt 0:00:24]} Rxf5 {[%emt 0:00:27]} 30. Nxf5 {[%emt 0:00:01]} g4 {[%emt 0:00:17]} 31. Ne3 {[%emt 0:00:01]} Ra5 {[%emt 0:00:23]} 32. Rc2 {[%emt 0:01:20]} b5 {[%emt 0:02:07]} 33. Nd5 {[%emt 0:01:42]} c5 {[%emt 0:03:51]} 34. Nxc3 {[%emt 0:00:11]} Kc6 {[%emt 0:00:44]} 35. Ne4 {[%emt 0:00:53]} c4 {[%emt 0:00:13]} 36. Kf2 {[%emt 0:00:01]} Ra3 {[%emt 0:01:13]} 37. Ke2 {[%emt 0:00:46]} a5 {[%emt 0:00:49]} 38. Kd2 {[%emt 0:00:59]} g3 {[%emt 0:01:06]} 39. Ke2 {[%emt 0:00:54]} Kd5 {[%emt 0:00:56]} 40. Nc3+ {[%emt 0:00:07]} Kc5 {[%emt 0:00:38]} 41. Nb1 {[%emt 0:02:02]} Ra4 {[%emt 0:05:53]} 42. Ke3 {[%emt 0:01:18]} Rb4 {[%emt 0:03:27]} 43. Nc3 {[%emt 0:00:05]} a4 {[%emt 0:00:07]} 44. Ne4+ {[%emt 0:01:18]} Kd5 {[%emt 0:00:32]} 45. Nxg3 {[%emt 0:00:05]} Rb1 {[%emt 0:01:37]} 46. Ne2 {[%emt 0:00:37]} b4 {[%emt 0:01:02]} 47. g4 {[%emt 0:01:11]} b3 {[%emt 0:01:34]} 48. Nc3+ {[%emt 0:00:43]} Ke5 {[%emt 0:00:06]} 49. Rg2 {[%emt 0:02:17]} bxa2 {[%emt 0:01:18]} 50. Rxa2 {[%emt 0:00:43]} Rb3 {[%emt 0:02:05]} 51. Kd2 {[%emt 0:00:29]} a3 {[%emt 0:00:31]} 52. Kc2 {[%emt 0:00:32]} Kf4 {[%emt 0:00:16]} 53. Nb1 {[%emt 0:00:49]} Rb2+ {[%emt 0:00:15]} 54. Rxb2 {[%emt 0:00:13]} axb2 {[%emt 0:00:04]} 55. Kxb2 {[%emt 0:00:08]} Kxg4 {[%emt 0:35:22]} 1/2-1/2

[Event "1000GM Schev-A January 2024"]
[Site "Sunnyvale"]
[Date "2024.01.21"]
[Round "2.4"]
[White "Chinni, Rishabh"]
[Black "Stopa, Jacek"]
[Result "1/2-1/2"]
[ECO "B06"]
[WhiteElo "1939"]
[BlackElo "2344"]
[Annotator "RC"]
[PlyCount "88"]
[EventDate "2024.01.20"]
[EventType "schev"]
[EventCountry "USA"]
[SourceTitle "playchess.com"]
[Source "ChessBase"]
[SourceQuality "1"]
[TimeControl "5400+30"]

1. e4 {[%emt 0:00:13]} g6 {[%emt 0:03:54]} 2. d4 {[%emt 0:00:11]} Bg7 {[%emt 0:00:05]} 3. Nc3 {[%emt 0:00:12]} a6 {[%emt 0:00:16]} 4. Be3 {[%emt 0:00:37]} b5 {[%emt 0:00:16]} 5. Qd2 {[%emt 0:00:37]} d6 {[%emt 0:00:58]} 6. f3 {[%emt 0:01:04]} Nd7 {[%emt 0:00:36]} 7. g4 {[%emt 0:00:46]} b4 {[%emt 0:02:17]} 8. Nce2 {[%emt 0:01:12]} Rb8 {[%emt 0:00:29]} 9. h4 {[%emt 0:01:03]} h6 {[%emt 0:00:51]} 10. Ng3 {[%emt 0:02:05]} e6 {[%emt 0:00:22]} 11. Bd3 {[%emt 0:02:12]} c5 {[%emt 0:00:51]} 12. N1e2 {[%emt 0:04:31]} Ne7 {[%emt 0:02:14]} 13. O-O-O {[%emt 0:04:37]} Qc7 {[%emt 0:03:04]} 14. b3 {[%emt 0:23:25]} Nc6 {[%emt 0:06:58]} 15. dxc5 {[%emt 0:11:34]} dxc5 {[%emt 0:04:57]} 16. f4 {[%emt 0:05:00]} Na5 {[%emt 0:10:01]} 17. Kb1 {[%emt 0:05:47]} c4 {[%emt 0:02:43]} 18. Bxc4 {[%emt 0:01:45]} Nxc4 {[%emt 0:00:23]} 19. bxc4 {[%emt 0:00:05]} Qxc4 {[%emt 0:02:16]} 20. Qd3 {[%emt 0:00:22]} Qxd3 {[%emt 0:01:27]} 21. Rxd3 {[%emt 0:01:19]} O-O {[%emt 0:01:11]} 22. Rhd1 {[%emt 0:01:09]} Nf6 {[%emt 0:01:27]} 23. Bc5 {[%emt 0:03:16]} Re8 {[%emt 0:00:10]} 24. g5 {[%emt 0:00:12]} Ng4 {[%emt 0:01:09]} 25. Rd8 {[%emt 0:03:20]} Bb7 {[%emt 0:00:06]} 26. Rxe8+ {[%emt 0:00:11]} Rxe8 {[%emt 0:00:01]} 27. Bxb4 {[%emt 0:04:36]} hxg5 {[%emt 0:05:34]} 28. hxg5 {[%emt 0:00:10]} Nf2 {[%emt 0:09:16]} 29. Rd7 {[%emt 0:03:03]} Bc6 {[%emt 0:03:21]} 30. Rc7 {[%emt 0:03:31]} Rb8 {[%emt 0:04:11]} 31. a3 {[%emt 0:02:26]} Bxe4 {[%emt 0:03:04]} 32. Nxe4 {[%emt 0:00:32]} Nxe4 {[%emt 0:00:02]} 33. Kc1 {[%emt 0:01:17]} a5 {[%emt 0:04:54]} 34. Bxa5 {[%emt 0:02:36]} Bb2+ {[%emt 0:00:16]} 35. Kd1 {[%emt 0:00:06]} Bxa3 {[%emt 0:00:17]} 36. Nc3 {[%emt 0:01:56]} Nd6 {[%emt 0:03:49]} 37. Rd7 {[%emt 0:01:54]} Nc4 {[%emt 0:01:53]} 38. Bc7 {[%emt 0:03:52]} Rc8 {[%emt 0:01:40]} 39. Ne4 {[%emt 0:01:14]} Ne3+ {[%emt 0:01:06]} 40. Kd2 {[%emt 0:00:26]} Nd5 {[%emt 0:00:06]} 41. Be5 {[%emt 0:01:02]} Kf8 {[%emt 0:03:18]} 42. Ra7 {[%emt 0:03:35]} Be7 {[%emt 0:01:24]} 43. c3 {[%emt 0:01:13]} Rd8 {[%emt 0:02:23]} 44. Ke2 {[%emt 0:00:27]} Rc8 {[%emt 0:01:29]} 1/2-1/2

[Event "1000GM Schev-A January 2024"]
[Site "Sunnyvale"]
[Date "2024.01.21"]
[Round "2.5"]
[White "Xia, Joshua"]
[Black "Moreno Trujillo, Alejandro"]
[Result "1-0"]
[ECO "B12"]
[WhiteElo "1922"]
[BlackElo "2485"]
[Annotator "RC"]
[PlyCount "39"]
[EventDate "2024.01.20"]
[EventType "schev"]
[EventCountry "USA"]
[SourceTitle "playchess.com"]
[Source "ChessBase"]
[SourceQuality "1"]
[TimeControl "5400+30"]

1. e4 {[%emt 0:00:13]} c6 {[%emt 0:00:27]} 2. d4 {[%emt 0:00:22]} d5 {[%emt 0:00:33]} 3. e5 {[%emt 0:00:14]} Bf5 {[%emt 0:00:27]} 4. h4 {[%emt 0:00:16]} h5 {[%emt 0:00:41]} 5. Bd3 {[%emt 0:01:31]} Bxd3 {[%emt 0:00:26]} 6. Qxd3 {[%emt 0:00:08]} e6 {[%emt 0:01:20]} 7. Bg5 {[%emt 0:00:22]} Qb6 {[%emt 0:00:30]} 8. Nd2 {[%emt 0:00:08]} c5 {[%emt 0:00:36]} 9. c4 {[%emt 0:00:16]} Nc6 {[%emt 0:04:36]} 10. Ngf3 {[%emt 0:15:03]} cxd4 {[%emt 0:00:16]} 11. cxd5 {[%emt 0:01:53]} Nb4 {[%emt 0:02:12]} 12. Qb3 {[%emt 0:00:38]} Qa6 {[%emt 0:00:30]} 13. Nxd4 {[%emt 0:07:41]} exd5 {[%emt 0:04:35]} 14. Rh3 {[%emt 0:05:31]} Rc8 {[%emt 0:14:52]} 15. e6 {[%emt 0:09:10]} f6 {[%emt 0:05:17]} 16. Rc3 {[%emt 0:12:08]} Rxc3 {[%emt 0:08:17]} 17. Qxc3 {[%emt 0:01:21]} Nd3+ {[%emt 0:00:50]} 18. Kd1 {[%emt 0:05:04]} Nxf2+ {[%emt 0:03:24]} 19. Kc2 {[%emt 0:00:37]} Ne7 {[%emt 0:01:29]} 20. Qc7 {[%emt 0:02:05]} 1-0